Cogmind - Beta 15 @@@ ROGUE MODE // 2025.09.01 @ 08:34:12 Player: shapeshifter Result: Destroyed by G-50 Soldier with Heavy Laser Performance ------------- Evolutions (5) 2500 Regions Visited (5) 1000 Robots Destroyed (49) 245 Value Destroyed (1503) 1503 Prototype IDs (25) 500 Alien Tech Used (0) 0 Bonus (2758) 2758 TOTAL SCORE: 8506 Bonus ------- Delivered SUBCON Basin 2000 Registered with UFD 300 Met Optimus in HQ 500 Friendly Fire -42 Cogmind --------- Core Integrity 0/1000 Matter 290/300 Energy 27/100 System Corruption 23% Temperature Cool (9) Movement Walking (125) Location -5/Factory Parts ------- > --- POWER (2) -------- (None) > --- PROPULSION (4) --- Flexi-carbon Leg Cargo Legs > --- UTILITY (8+2) ---- High-capacity Storage Unit Tech Extrapolator > --- WEAPON (3) ------- Companion Sword > --- INVENTORY (20) --- Improved Coolant Injector Improved Coolant Injector Improved Sensor Array Improved Component Analysis Suite Overtuned Coil Gun Overtuned Coil Gun CPS Tube (2) CPS Tube (2) Multitool DRS Beacon (Ready) Peak State ------------ > --- POWER ------------ Angular Momentum Engine Neutrino Core > --- PROPULSION ------- Enhanced Armored Leg Overtuned Scrapsphere Armored Huge Wheel > --- UTILITY ---------- Improved Coolant Injector High-capacity Storage Unit Machine Analyzer 0b10 Decoder Chip [Generic] Improved Transmission Jammer Improved Medium Armor Plating Improved Component Analysis Suite Tech Extrapolator > --- WEAPON ----------- Enhanced Nova Cannon Enhanced Nova Cannon Companion Sword > --- INVENTORY -------- Light Angular Momentum Engine Cargo Legs Armored Wheel Armored Wheel Improved Coolant Injector Improved Coolant Injector Matter Compressor Improved Sensor Array Transport Network Coupler Force Booster Point Defense System Overtuned Coil Gun Overtuned Coil Gun Mass Driver Enhanced Gauss Cannon CPS Tube CPS Tube Multitool DRS Beacon [Rating: 99] Favorites ----------- Power Angular Momentum Engine Engine Angular Momentum Engine Power Core Neutrino Core Propulsion Armored Wheel Treads Light Treads Leg Enhanced Armored Leg Wheel Armored Wheel Utility High-capacity Storage Unit Device Improved Component Analysis Suite Storage High-capacity Storage Unit Processor Tech Extrapolator Hackware Advanced System Shield Protection Makeshift Kinetic Plating Weapon Battle Cannon Energy Gun High-powered Shock Rifle Energy Cannon Enhanced Nova Cannon Ballistic Gun Light Assault Rifle Ballistic Cannon Battle Cannon Launcher Grenade Launcher Special Weapon Multitool Slashing Weapon Companion Sword Build | -11 -10 -10 -7 -7 -5 ------- Run | Yrd Mat Sub Rec Scr Fac Slots Evolved 10 | . . . . . 10 Power 1 | . . . . . 1 Propulsion 2 | . . . . . 2 Utility 6 | . . . . . 6 Weapon 1 | . . . . . 1 Parts Attached 68 | 7 6 17 . 7 31 Power 9 | 1 1 4 . 1 2 Engine 8 | 1 1 4 . 1 1 Core 1 | . . . . . 1 Reactor . | . . . . . . Propulsion 16 | 2 2 2 . 1 9 Treads 2 | 2 . . . . . Leg 7 | . . . . . 7 Wheel 7 | . 2 2 . 1 2 Hover . | . . . . . . Flight . | . . . . . . Utility 22 | 2 2 3 . 2 13 Device 8 | 1 . 1 . . 6 Storage 2 | 1 1 . . . . Processor 4 | . . . . . 4 Hackware 1 | . . . . . 1 Protection 7 | . 1 2 . 2 2 Artifact . | . . . . . . Weapon 21 | 2 1 8 . 3 7 Energy Gun 2 | . . . . 1 1 Energy Cannon 3 | . . 1 . . 2 Ballistic Gun 10 | 2 . 6 . 2 . Ballistic Cannon 3 | . . 1 . . 2 Launcher 1 | . 1 . . . . Special Weapon 1 | . . . . . 1 Impact Weapon . | . . . . . . Slashing Weapon 1 | . . . . . 1 Piercing Weapon . | . . . . . . Special Melee Weapon . | . . . . . . Unidentified Prototypes 2 | . . . . . 2 Parts Lost 34 | . 2 10 . . 22 Power 6 | . 1 2 . . 3 Propulsion 8 | . . . . . 8 Utility 9 | . 1 . . . 8 Weapon 11 | . . 8 . . 3 Highest Loss Streak 17 | . 1 4 . . 17 To Critical Strikes 2 | . . . . . 2 Average Backups 10 | 3 5 4 3 15 16 Power . | 1 . . . . . Propulsion 1 | 1 2 1 1 1 3 Utility 2 | . . 1 1 4 4 Weapon 3 | . 1 . . 5 4 Tool/Special . | . . . . . . Unused Backups 35 | . 1 6 . 8 20 Power . | . . . . . . Propulsion 3 | . 1 2 . . . Utility 13 | . . 3 . 4 6 Weapon 14 | . . 1 . 4 9 Tool/Special 5 | . . . . . 5 Average Slot Usage (%) 93 | . 92 97 85 95 86 Engine 12 | . 13 13 14 14 4 Treads 2 | . 18 . . . . Wheel 23 | . 9 28 28 28 15 Device 2 | . 4 . . . 13 Storage 12 | . 14 13 14 14 5 Processor 2 | . . . . . 15 Protection 11 | . 3 13 14 14 5 Energy Gun 1 | . . . . 3 2 Energy Cannon 1 | . . 1 . . 4 Ballistic Gun 14 | . 26 16 . 14 1 Ballistic Cannon 4 | . . 5 14 5 1 Launcher 1 | . 1 3 . . . Peak Build Rating 99 | 7 10 38 33 33 99 Average Rating 34 | 4 7 31 31 25 81 On Entrance 16 | . 7 10 33 15 32 Naked Turns . | . . . . . . Heaviest Build 107 | 12 47 63 55 69 107 Greatest Support 95 | 40 40 24 24 24 95 Greatest Overweight (x) 4 | . 1 2 2 3 4 Average Overweight (x) 1 | . . 1 2 2 2 Largest Inventory Capacity 20 | 8 20 20 20 20 20 Average Capacity 18 | 7 11 19 20 20 20 Most Carried 20 | 6 9 20 20 20 20 Average Carried 16 | 3 5 18 18 17 18 Final Capacity 20 | 8 20 20 20 20 20 Final Carried 20 | 4 8 20 6 20 10 Class Distribution -------------------- 100% | Mutant Dominant Class ---------------- Mutant | -10/Materials Mutant | -10/Subcaves Mutant | -7/Recycling Mutant | -7/Scraptown Mutant | -5/Factory Resources | -11 -10 -10 -7 -7 -5 ----------- Run | Yrd Mat Sub Rec Scr Fac Matter Collected 1801 | 310 116 717 . 171 487 Remotely . | . . . . . . Salvage Created 1704 | 117 300 564 . . 723 Parts 110 | 9 22 42 . . 37 Haulers Intercepted 1 | . . . . . 1 Recyclers Shooed 1 | . . . . . 1 Parts Field Recycled . | . . . . . . Retrieved Matter . | . . . . . . Parts Self-Destructed 13 | . . 13 . . . Prevented . | . . . . . . Kills | -11 -10 -10 -7 -7 -5 ------- Run | Yrd Mat Sub Rec Scr Fac Combat Hostiles Destroyed 34 | . 10 18 . . 6 Melee 5 | . . . . . 5 Guns 15 | . 8 7 . . . Cannons 8 | . . 7 . . 1 AOE 6 | . 2 4 . . . Classes Destroyed 14 | 2 4 5 . . 3 Builder 2 | . 1 . . . 1 Tunneler 4 | 3 . . . . 1 Hauler 1 | . . . . . 1 Recycler 3 | 1 . . . . 2 Turret 2 | . . 2 . . . Watcher 2 | . 2 . . . . Swarmer 7 | . 3 4 . . . Grunt 7 | . 7 . . . . Sentry 2 | . . 1 . . 1 Specialist 2 | . . . . . 2 Programmer 3 | . . . . . 3 Artisan 1 | . . 1 . . . Subdweller 13 | . . 13 . . . Zionite 1 | . . 1 . . . Best Kill Streak 6 | 4 4 6 . . 3 Combat Bots Only 4 | . 4 4 . . 3 Max Kills in Single Turn 2 | 1 2 2 . . 1 Gunslinging 1 | . . 1 . . . Exploded 1 | . 1 1 . . . Melee 1 | . . . . . 1 Uniques/NPCs Destroyed . | . . . . . . Combat | -11 -10 -10 -7 -7 -5 -------- Run | Yrd Mat Sub Rec Scr Fac Hostile Shots Fired 616 | . 55 139 . . 422 Missed 145 | . 11 51 . . 83 Hits 471 | . 44 88 . . 339 Projectile 471 | . 44 88 . . 339 AOE 1 | . . . . . 1 Critical Strikes 17 | . . 1 . . 16 Part Disruptions 3 | . . . . . 3 Damage Taken 7728 | . 446 1450 . . 5832 Core 1244 | . 65 169 . . 1010 Absorbed by Shields 96 | . . . . . 96 Redirected to Shielding 44 | . . 44 . . . Ignored by Resistances 33 | . . 33 . . . Core Remaining (%) 53 | 100 . . . 6 . Volleys Fired 160 | 10 36 103 . . 11 Largest 2 | 2 2 2 . . 2 Hottest 240 | 40 40 113 . . 240 Shots Fired 257 | 20 66 154 . . 17 Gun 165 | 20 60 81 . . 4 Cannon 72 | . . 59 . . 13 Launcher 20 | . 6 14 . . . Special . | . . . . . . Kinetic 221 | 20 60 136 . . 5 Thermal 14 | . . 4 . . 10 Explosive 20 | . 6 14 . . . Electromagnetic 2 | . . . . . 2 Robot Hit Streak 29 | 4 11 29 . . 5 Robot Miss Streak 7 | 2 5 7 . . 3 Penetration Max . | . . . . . . Secondary Targets 4 | . 3 1 . . . Max Gunslinging Chain 1 | . 1 1 . . . Shots Hit Robots 177 | 12 43 75 . . 47 Core Hits 85 | 7 25 35 . . 18 Critical Kills . | . . . . . . Critical Parts Destroyed . | . . . . . . Critical Strikes 4 | . . 2 . . 2 Blast 2 | . . 2 . . . Melee Attacks 56 | . . . . . 56 Impact . | . . . . . . Slashing 56 | . . . . . 56 Piercing . | . . . . . . Sneak Attacks 6 | . . . . . 6 Combat Hostiles 1 | . . . . . 1 Follow-up Attacks 1 | . . . . . 1 Damage Inflicted 4597 | 121 757 1538 . . 2181 Guns 1181 | 121 408 573 . . 79 Cannons 833 | . . 540 . . 293 Explosions 774 | . 349 425 . . . Melee 1809 | . . . . . 1809 Ramming . | . . . . . . Kinetic 1596 | 121 408 1029 . . 38 Thermal 377 | . . 84 . . 293 Explosive 774 | . 349 425 . . . Electromagnetic 41 | . . . . . 41 Impact . | . . . . . . Slashing 1809 | . . . . . 1809 Piercing . | . . . . . . Highest Corruption 23 | . . . . . 23 Average Corruption 14 | . . . . . 14 Corruption Purged . | . . . . . . Corruption Blocked . | . . . . . . Effects 4 | . . . . . 4 Message Errors 1 | . . . . . 1 Matter Fused 1 | . . . . . 1 Heat Flow Errors 1 | . . . . . 1 Data Loss (minor) 1 | . . . . . 1 Overload Shots . | . . . . . . Overflow Damage 105 | . 5 28 . . 72 Projectiles 28 | . . 28 . . . Explosions 5 | . 5 . . . . Melee 72 | . . . . . 72 Knockbacks 3 | . . 3 . . . Impact . | . . . . . . Kinetic 3 | . . 3 . . . Secondary . | . . . . . . Self-Inflicted Damage 85 | . . 85 . . . Shots 3 | . . 3 . . . Rammed . | . . . . . . Targets Rammed . | . . . . . . Kicked . | . . . . . . Crushed . | . . . . . . Highest Temperature 238 | . 12 238 . . 186 Average Temperature 55 | . 4 70 . . 69 Received Heat Transfer 1407 | . 183 703 . . 521 Siege Activations . | . . . . . . Martial Activations . | . . . . . . Shielding Activations . | . . . . . . Robots Disrupted 1 | . . . . . 1 Combat Hostiles 1 | . . . . . 1 Robots Corrupted . | . . . . . . Combat Hostiles . | . . . . . . Parts Fried . | . . . . . . Impact Corruptions . | . . . . . . Robots Melted . | . . . . . . Combat Hostiles . | . . . . . . Parts Melted 4 | . . 4 . . . Heat Transferred 238 | . . 111 . . 127 Parts Sabotaged . | . . . . . . Parts Stolen . | . . . . . . Parts Stripped . | . . . . . . Power Chain Reactions . | . . . . . . Alert | -11 -10 -10 -7 -7 -5 ------- Run | Yrd Mat Sub Rec Scr Fac Maximum Alert Level . | . . . . . . Low Security (%) 100 | 100 100 . 100 . 100 Level 1 . | . . . . . . Level 2 . | . . . . . . Level 3 . | . . . . . . Level 4 . | . . . . . . Level 5 . | . . . . . . High Security . | . . . . . . Max Security . | . . . . . . Peak Influence 90 | 10 90 . 90 . 64 Initial 90 | . . . 90 . . Average 17 | 1 31 . 65 . 3 Influence Increases 788 | 20 298 230 7 . 233 Destroy 0b10 Robot/C 460 | . 200 140 . . 120 Destroy 0b10 Robot/NC 65 | 20 15 . . . 30 Destroy Leader 78 | . 44 . . . 34 Successful Hack 26 | . 5 . 7 . 14 Disable Machine 30 | . 15 . . . 15 Destroy Structure 39 | . 19 . . . 20 Lose Combat Pursuer 90 | . . 90 . . . Influence Decreases 788 | 20 298 42 158 37 233 Entered New Map 135 | . . . 98 37 . Time Decay 519 | 20 278 32 60 . 129 Lost Part 134 | . 20 10 . . 104 Squads Dispatched 4 | . 2 . . . 2 Investigation 1 | . 1 . . . . Extermination 1 | . . . . . 1 Reinforcement 2 | . 1 . . . 1 Assault . | . . . . . . Garrison . | . . . . . . Intercept . | . . . . . . Searches Triggered . | . . . . . . Construction Impeded . | . . . . . . Haulers Reinforced . | . . . . . . Active Scanning Responses . | . . . . . . Cargo Convoy Interrupts 1 | . . . . . 1 Stealth | -11 -10 -10 -7 -7 -5 --------- Run | Yrd Mat Sub Rec Scr Fac Distress Signals 1 | . 1 . . . . Communications Jammed 60 | . . . . . 60 Distress Signals 60 | . . . . . 60 Times Spotted 61 | . 16 21 . . 24 Peak Tracking Total 13 | . 7 4 . . 13 Tactical Retreats 3 | . . 3 . . . Traps | -11 -10 -10 -7 -7 -5 ------- Run | Yrd Mat Sub Rec Scr Fac Traps Triggered 1 | . . 1 . . . Indirectly . | . . . . . . Trap Hack Attempts . | . . . . . . Triggered . | . . . . . . Disarmed . | . . . . . . Reprogrammed . | . . . . . . Reused . | . . . . . . Traps Extracted . | . . . . . . Installed . | . . . . . . Triggered . | . . . . . . Machines | -11 -10 -10 -7 -7 -5 ---------- Run | Yrd Mat Sub Rec Scr Fac Machines Disabled 5 | . 1 3 . . 1 Max in Single Turn 1 | . 1 1 . . 1 Garrison Access 1 | . . . . . 1 Machines Repaired . | . . . . . . Machines Dismantled . | . . . . . . Machines Sabotaged . | . . . . . . Overloaded Fab Kills . | . . . . . . Hacking | -11 -10 -10 -7 -7 -5 --------- Run | Yrd Mat Sub Rec Scr Fac Machines Accessed 21 | . 4 4 2 4 7 Terminals 8 | . 3 . 2 . 3 Fabricators 2 | . . . . . 2 Repair Stations . | . . . . . . Recycling Units 1 | . 1 . . . . Scanalyzers . | . . . . . . Garrison Access 2 | . . . . . 2 Total Hacks 51 | . 10 7 7 12 15 Successful 30 | . 4 7 4 12 3 Failed 21 | . 6 . 3 . 12 Catastrophic 5 | . 1 . 1 . 3 Database Lockouts . | . . . . . . Manual 16 | . 8 . 7 . 1 Terminals 18 | . 8 . 7 . 3 Fabricators 5 | . . . . . 5 Repair Stations . | . . . . . . Recycling Units 2 | . 2 . . . . Scanalyzers . | . . . . . . Garrison Access 7 | . . . . . 7 Terminal Hacks 21 | . . 7 2 12 . Record 8 | . . 4 . 4 . Robot Analysis 6 | . . . . 6 . Open Door 2 | . . 1 . 1 . Registered Components 1 | . . . 1 . . Zone Layout 1 | . . . 1 . . Proto ID Catalog 2 | . . 1 . 1 . Release Object 1 | . . 1 . . . Fabricator Hacks 2 | . . . . . 2 Network Status 1 | . . . . . 1 Build 1 | . . . . . 1 Repair Station Hacks . | . . . . . . Recycling Unit Hacks 2 | . 2 . . . . Report Inventory 1 | . 1 . . . . Retrieve Components 1 | . 1 . . . . Scanalyzer . | . . . . . . Garrison Access Hacks 1 | . . . . . 1 Seal Access 1 | . . . . . 1 Unauthorized Hacks 4 | . 2 . 2 . . Terminals 4 | . 2 . 2 . . Botnet 4 | . 2 . 2 . . Fabricators . | . . . . . . Repair Stations . | . . . . . . Recycling Units . | . . . . . . Scanalyzers . | . . . . . . Garrison Access . | . . . . . . Data Cores Recovered . | . . . . . . Used . | . . . . . . Hacking Detections 11 | . 3 . 2 . 6 Full Trace Events 2 | . 1 . 1 . . Feedback Events . | . . . . . . Feedback Blocked . | . . . . . . Robot Schematics Acquired . | . . . . . . Robots Built . | . . . . . . Authchips . | . . . . . . Time . | . . . . . . Total Robot Build Rating . | . . . . . . Part Schematics Acquired 6 | . . . . . 6 Parts Built 2 | . . . . . 2 Authchips . | . . . . . . Time 69 | . . . . . 69 Total Part Build Rating 18 | . . . . . 18 Parts Repaired . | . . . . . . Time . | . . . . . . Parts Recycled . | . . . . . . Recycled Matter . | . . . . . . Retrieved Matter . | . . . . . . Retrieved Components 9 | . 9 . . . . Parts Scanalyzed . | . . . . . . Part Schematics Acquired . | . . . . . . Parts Damaged . | . . . . . . Bothacking | -11 -10 -10 -7 -7 -5 ------------ Run | Yrd Mat Sub Rec Scr Fac Used RIF Installer . | . . . . . . Robots Hacked . | . . . . . . Non-combat . | . . . . . . Combat . | . . . . . . Robot Hacks Applied . | . . . . . . Relay Couplers Released . | . . . . . . Fabnet Peak Effective % . | . . . . . . Robots Rewired 1 | . . . . . 1 Allies Hacked . | . . . . . . Hacks Repelled . | . . . . . . Allies | -11 -10 -10 -7 -7 -5 -------- Run | Yrd Mat Sub Rec Scr Fac Total Allies 1 | . . . . . 1 Largest Group 1 | . . . . . 1 Highest-Rated Group 49 | . . . . . 49 Highest-Rated Ally 49 | . . . . . 49 Total Orders . | . . . . . . Ally Attacks 3 | . . . . . 3 Total Damage 70 | . . . . . 70 Kills 1 | . . . . . 1 Allies Corrupted . | . . . . . . Allies Melted . | . . . . . . Intel | -11 -10 -10 -7 -7 -5 ------- Run | Yrd Mat Sub Rec Scr Fac Active Infowar (turns) 1408 | 36 285 . . . 1087 Seismic 321 | 36 285 . . . . Decoding 967 | . . . . . 967 T.N.C. 176 | . . . . . 176 Machine Analysis 798 | . . . . . 798 Jamming 576 | . . . . . 576 Robot Analysis Total 6 | . . . . 6 . Derelict Logs Recovered 4 | . . 2 . 2 . Drone Launches . | . . . . . . Drone Recoveries . | . . . . . . Decoded 0b10 Intel 30 | . . . . . 30 Traps 7 | . . . . . 7 Emergency Access 2 | . . . . . 2 Items 15 | . . . . . 15 Machines 4 | . . . . . 4 Patrols 1 | . . . . . 1 Guards 1 | . . . . . 1 Exploration | -11 -10 -10 -7 -7 -5 ------------- Run | Yrd Mat Sub Rec Scr Fac Turns Passed 6795 | 139 876 2305 134 2240 1101 Spaces Moved 4772 | 74 441 1711 111 1801 634 Core 22 | 22 . . . . . Treads 344 | 52 292 . . . . Legs 14 | . . . . . 14 Wheels 4392 | . 149 1711 111 1801 620 Hover . | . . . . . . Flight . | . . . . . . Fastest Speed 50 | 50 90 90 120 116 98 Average Speed 119 | 127 138 116 120 119 110 Slowest Speed 190 | 160 160 120 120 120 190 Overloaded Moves . | . . . . . . Propulsion Burnouts . | . . . . . . Robots Hopped . | . . . . . . Potential Cave-ins . | . . . . . . Cave-ins Triggered . | . . . . . . Exploration Rate (%) 48 | 5 72 93 18 88 14 Regions Visited 5 Branch Regions 3 Pre-discovered Areas 4 | . . 3 . 1 . Known Exits Taken . | . . . . . . Unknown Exits Taken 5 | 1 1 1 1 1 . Scrap Searched 8 | . . 5 . 3 . Spaces Dug 7 | . . . . . 7 Terrain Destroyed 106 | . 29 67 . . 10 Melee 3 | . . . . . 3 Projectile 9 | . . 2 . . 7 AOE 94 | . 29 65 . . . Terrain Rammed . | . . . . . . Walls Destroyed . | . . . . . . Machines Disabled . | . . . . . . Actions | -11 -10 -10 -7 -7 -5 --------- Run | Yrd Mat Sub Rec Scr Fac Total 5567 | 101 643 1880 112 1886 945 Wait 305 | . 148 3 . 32 122 Move 4767 | 73 440 1710 110 1800 634 Hop . | . . . . . . Pick Up 107 | 11 8 21 1 30 36 Fast Attach 8 | . 1 3 . 1 3 Attach 54 | 7 3 14 . 6 24 Detach 3 | . . . . 2 1 Swap 26 | . 4 6 . 2 14 Drop 65 | . 3 20 1 13 28 Fire 160 | 10 36 103 . . 11 Melee 55 | . . . . . 55 Ram . | . . . . . . Kick . | . . . . . . Crush . | . . . . . . Escape Stasis . | . . . . . . Rewire 16 | . . . . . 16 Trap . | . . . . . . Miscellaneous 1 | . . . . . 1 Route ------- -11/Scrapyard -10/Materials (discovered 3 exits: [*Mat x2] / *Sub) -10/Subcaves (discovered 3 exits: [*Mat x2] / *Rec) -7/Recycling -7/Scraptown (discovered 2 exits: *Fac x2) -5/Factory (discovered 1 exit: [*Fac]) History --------- Turn | Location | Event 10 | -11/Scrapyard | Discovered new exit (range 15) 140 | -11/Scrapyard | Entered Materials 312 | -10/Materials | Build established: Mutant 642 | -10/Materials | Discovered new exit (range 16) 849 | -10/Materials | Discovered new exit (range 10) 1003 | -10/Materials | Discovered new exit (range 10) 1016 | -10/Materials | Entered Subcaves 1023 | -10/Subcaves | Learned location of Mines (-8) 1151 | -10/Subcaves | Found SUBCON Basin 1208 | -10/Subcaves | A swath of the cavern ceiling suddenly collapsed 1354 | -10/Subcaves | Discovered new exit (range 7) 1404 | -10/Subcaves | Visited Clippyterm 1407 | -10/Subcaves | Learned location of Extension (-6) 1497 | -10/Subcaves | Ambushed by Subdwellers from Twisted Machinery 1610 | -10/Subcaves | Discovered new exit (range 10) 1751 | -10/Subcaves | Core integrity fell below 50% 1785 | -10/Subcaves | Lost 4 parts (1p3w) 2164 | -10/Subcaves | Learned location of Zion (-7) 2164 | -10/Subcaves | Met a Zionite searching for "candidates" 2235 | -10/Subcaves | Shifting Twisted Machinery released Piercing Trap 2243 | -10/Subcaves | Shifting Twisted Machinery released Battle Cannon 2311 | -10/Subcaves | Ambushed by Subdweller buried in earth 2422 | -10/Subcaves | Ambushed by Subdwellers from Twisted Machinery 2437 | -10/Subcaves | Core integrity fell below 20% 2462 | -10/Subcaves | Lost 3 parts (1p2w) 2543 | -10/Subcaves | Visited 4L-MR0's lab 2562 | -10/Subcaves | Found Cargo Legs 2625 | -10/Subcaves | Shifting Twisted Machinery released Sub. Optics 2646 | -10/Subcaves | Shifting Twisted Machinery released Sub. Beam Cannon 3257 | -10/Subcaves | Discovered new exit (range 10) 3321 | -10/Subcaves | Entered Recycling 3391 | -7/Recycling | Scanned before Scraplab entrance 3408 | -7/Recycling | Entered Scraplab 3453 | -7/Recycling | Discovered new exit (range 3) 3455 | -7/Recycling | Entered Scraptown 3481 | -7/Scraptown | Heard Great Nut preacher, LISTEN AND RECITE! 3508 | -7/Scraptown | Visited Spacefarers 3544 | -7/Scraptown | Scanned Subdweller tech in exchange for log data 3548 | -7/Scraptown | Learned Factory garrison access intel 3549 | -7/Scraptown | Learned location of Armory (-4) 3603 | -7/Scraptown | Discovered new exit (range 11) 3945 | -7/Scraptown | Visited Shadow of the Wyrm 3966 | -7/Scraptown | Visited UFD Registry 3966 | -7/Scraptown | Registered with UFD as "Hardboard" 3999 | -7/Scraptown | Visited Scrapoid Research Area 4033 | -7/Scraptown | Visited Junk Repository 4180 | -7/Scraptown | Visited TADAMA 4196 | -7/Scraptown | Visited Comm Corps 4282 | -7/Scraptown | Visited Sword Containment 4323 | -7/Scraptown | Visited Curators Association 4340 | -7/Scraptown | Visited Derelict Rescue Squad 4349 | -7/Scraptown | Found DRS Beacon 4388 | -7/Scraptown | Delivered Scrap Shield to a Scientist 4446 | -7/Scraptown | Visited Analyses Database 4474 | -7/Scraptown | Visited Infowarlord's Domain 4489 | -7/Scraptown | Visited Junk Repository 4541 | -7/Scraptown | Visited Science Guys 4582 | -7/Scraptown | Visited LU-1G1's Boring Crew 4752 | -7/Scraptown | Guru changed UFD alias to "Technomech" 5230 | -7/Scraptown | Visited Modified Component R&D 5635 | -7/Scraptown | Met Optimus 5635 | -7/Scraptown | Accepted into 0bPrime 5693 | -7/Scraptown | Discovered new exit (range 3) 5695 | -7/Scraptown | Entered Factory 5695 | -5/Factory | Evolved 10 slots: Power x1, Propulsion x2, Utility x6, Weapon x1 5696 | -5/Factory | Loaded intel: 4 garrison access locations 6111 | -5/Factory | Tech Extrapolator generated special schematic: Deep Structural Scanner 6162 | -5/Factory | Fabricated Enh. Nova Cannon (x2) 6339 | -5/Factory | Discovered new exit (range 13) 6663 | -5/Factory | Cargo convoy interrupted 6695 | -5/Factory | System corruption reached 10% 6730 | -5/Factory | Core integrity fell below 50% 6763 | -5/Factory | Core integrity fell below 20% 6763 | -5/Factory | Attached Cargo Legs, gained temporary slots: Utility x2 6776 | -5/Factory | Lost 17 parts (3p6n6u2w) 6796 | -5/Factory | Destroyed by G-50 Soldier with Heavy Laser Last Messages --------------- 06782_ K-01 Serf collects debris. 06782_ Slug penetrates Wall. 06782_ Penetrated by Slug. 06782_ Transport Network Coupler destroyed. 06784_ U-05 Engineer builds a Wall. 06784_ Penetrated by Slug. 06784_ Machine Analyzer destroyed. 06784_ Critical hit (Blast). 06784_ Knocked back. 06784_ U-05 Engineer system corrupted by crushing effect. 06785_ U-05 Engineer system terminally corrupted. 06785_ Penetrated by Slug. 06789_ U-05 Engineer builds a Door. 06790_ Acquired 10 matter. 06792_ Penetrated by Slug. 06793_ U-05 Engineer builds a Wall. 06794_ R-10 Processor collects Lgt. Ion Engine. 06795_ Acquired Flexi-carbon Leg. Map ----- +----------------------------------------------------+ | ??# ## #??????????????????????????? | | ??# ]] ## """ #??????????????????????????? | | ???# ] ## """ #??????????????????????????? | | ?????# ## """ #??????????????????????????? | | ?????# ## #??????????????????????????? | | ?????############ """ ###########????????????????? | | ????????????????# """ # #????????????????? | | ????????????????# """ #! """ #????????????????? | | ????????????????# # """ #????????????????? | | ????????????????##+##+# """ #????????????????? | | ?????????????????# + " " #????????????????? | | ?????????????????# # "G" #????????????????? | | ?????????????????# # """ #????????????????? | | ?????????????????# # #????????????????? | | ?????????????????# ############???????????????? | | ??????????????# #???????? ??????????????? | | ????????????# #??????? ?????!????????? | | #???????????# ##????? ??????????"""""? | | ############# #####? = ???????????"""""? | | # ??????=?????"""^?? | | i # ???????????????????? | | ==! + ????????????????"""""? | | *%%=|=*!#??????????!?/????"""""? | | ^^ [u![!=%%#?????????????????"""??? | | ^^ ^^####+######+#=###Hx#g#??????????????????????? | | # ##|!%!!@#??????????????????????? | | # ##![u%"!#??????????????????????? | | # ##[=hR"!#??????????????????????? | | # "#u=**"!#???????????????????"?"? | | # """ """ ##=|%! |#???????????????????"R"? | | # """ """ ##%!![!R#???????????????????"""? | | # """ """ ##!"""! #??????????????????????? | | # ## """ #??????????????????????? | | # """ ## """ #??????????????????????? | | # """ ! ## #??????????????????????? | | # """ "# """k #??????????????????????? | | + ## """ #??????????????????????? | | ############### """ #??????????????????????? | | #?????????????# #??????????????????????? | | #?????????????#####+##??????????????????????? | | #?????????????????# #???????????????????????? | | #?????????????????# #???????????????????????? | | #?????????????????# #???????????????????????? | | #???????????####### ###?????????????????????? | | #???##???? # "#?????????????????????? | | #+##########??""" """ # ""#?????????????????????? | | ]!!= #??""" """ # ##############??????????? | | | |= #??""" """ # ?????????? | | """ #??? # ?????????? | | """"" #??""" """ # ?????????? | +----------------------------------------------------+ Best States ------------- Heat Dissipation 40 Coolant Potential 80 Energy Generation 32 Energy Capacity 515 Matter Stores 300 Matter Capacity 300 Sight Range 16 Terrain Scan Density 10 Jamming Range 14 Armor Coverage 800 Resistance: KI 10 Resistance: EM 20 Propulsion Shielding 33 Point Defense Rating 80 Evasion (%) 50 Recoil Reduction 2 Force Boost 20 Defensive Hacking 14 Item Schematics ----------------- Bore Cannon | -5/Factory | Extrapolated Deep Structural Scanner | -5/Factory | Extrapolated Mak. Spear | -5/Factory | Extrapolated Mak. System Shield | -5/Factory | Extrapolated Mak. Coolant Network | -5/Factory | Extrapolated Mak. Power Source | -5/Factory | Extrapolated Robot Schematics ------------------ None Fabricated ------------ Enh. Nova Cannon | x2 | -5/Factory | Preloaded Repaired ---------- Nothing Alien Tech Used ----------------- None Achievements -------------- None Challenges ------------ None Game ------ Seed ShiftAntigravStripper Manual? 0 Play Time 00:57:57 Cumulative 243.4 hours Start 2025.09.01 @ 05:17:53 End 2025.09.01 @ 08:34:12 Sessions 3 Manual Loads 0 Difficulty Rogue Special Mode None Game No. 359 Rogue 359 Adventurer 0 Explorer 0 Win Type - Total 5 Types 4/0/1/0/0/0/0/0/0/0 Lore% 82 Gallery% 77 Achievement% 59 Wizard Run 0 Options --------- Layout 1 ASCII 0 Keyboard 0 Movement Mouse Keybinds 0 Fullscreen 1 Font 24/Smallcaps Map View 50x40 Zoom Use 0% Tactical HUD 1 Map Filters NONE Filters NONE Steam 1 RUN: 8c6a8dbb-328b-44a0-affa-3f8629db7853